lending/lending_fUSD_20250121
["ID","MTS","AMOUNT","RATE_DAILY","PERIOD"]
[349857232,1737462652690,-500.0,0.00020273,2]
[349857233,1737462652700,-500.0,0.00020273,2]
[349857234,1737462652709,-1790.18,0.00020273,2]
[349857235,1737462652719,-500.0,0.00020273,2]
[349857236,1737462652729,-1152.1,0.00020273,2]
[349857237,1737462652739,-500.0,0.00020273,2]
[349857238,1737462652748,-500.0,0.00020273,2]
[349857239,1737462652758,-660.0,0.00020273,2]
[349857240,1737462652768,-500.0,0.00020273,2]
[349857241,1737462652778,-891.08,0.00020273,2]
[349857242,1737462652788,-500.0,0.00020273,2]
[349857243,1737462652797,-1540.94,0.00020273,2]
[349857244,1737462652807,-1805.75,0.00020273,2]
[349857245,1737462652819,-1138.48,0.00020273,2]
[349857246,1737462652828,-500.0,0.00020273,2]
[349857247,1737462652838,-500.0,0.00020273,2]
[349857248,1737462652847,-500.0,0.00020273,2]
[349857249,1737462652857,-500.0,0.00020273,2]
[349857250,1737462652866,-1397.74,0.00020273,2]
[349857251,1737462652875,-505.6582109,0.00020273,2]
[349857252,1737462652884,-500.0,0.00020273,2]
[349857253,1737462652894,-500.0,0.00020273,2]
[349857254,1737462652903,-1522.16,0.00020273,2]
[349857255,1737462652912,-500.0,0.00020273,2]
[349857256,1737462652922,-500.0,0.00020273,2]
[349857257,1737462652932,-500.0,0.00020273,2]
[349857258,1737462652941,-500.0,0.00020273,2]
[349857259,1737462652951,-25000.0,0.0002031,2]
[349857260,1737462652960,-3484.07,0.00020315,7]
[349857261,1737462652969,-3484.07,0.00020315,7]
[349857262,1737462652978,-5000.0,0.00020316,2]
[349857263,1737462652987,-198.14,0.00020334,2]
[349857264,1737462652996,-2513.88,0.00020339,2]
[349857265,1737462653005,-150.0,0.00020356,2]
[349857266,1737462653014,-300.0,0.00020356,2]
[349857267,1737462653024,-150.0,0.00020356,2]
[349857268,1737462653034,-298.01,0.00020356,2]
[349857269,1737462653043,-981.79,0.00020356,2]
[349857270,1737462653053,-150.0,0.00020356,2]
[349857271,1737462653063,-437.71,0.00020356,2]
[349857272,1737462653075,-150.0,0.00020356,2]
[349857273,1737462653084,-310.18,0.00020356,2]
[349857274,1737462653094,-150.0,0.00020356,2]
[349857275,1737462653103,-298.01,0.00020356,2]
[349857276,1737462653114,-150.0,0.00020356,2]
[349857277,1737462653123,-150.0,0.00020356,2]
[349857278,1737462653133,-981.79,0.00020356,2]
[349857279,1737462653143,-437.71,0.00020356,2]
[349857280,1737462653152,-150.0,0.00020356,2]
[349857281,1737462653161,-437.71,0.00020356,2]
[349857282,1737462653171,-150.0,0.00020356,2]
[349857283,1737462653180,-150.0,0.00020356,2]
[349857284,1737462653189,-981.79,0.00020356,2]
[349857285,1737462653198,-150.0,0.00020356,2]
[349857286,1737462653208,-437.71,0.00020356,2]
[349857287,1737462653217,-981.79,0.00020356,2]
[349857288,1737462653226,-150.0,0.00020356,2]
[349857289,1737462653236,-168.27944597,0.00020399,2]
[349857290,1737462653246,-5000.0,0.00020399,2]
[349857291,1737462653256,-5000.0,0.00020423,2]
[349857292,1737462653265,-500.0,0.00020446,2]
[349857293,1737462653275,-500.0,0.00020446,2]
[349857294,1737462653284,-500.0,0.00020446,2]
[349857295,1737462653293,-5000.0,0.00020446,2]
[349857296,1737462653302,-25000.0,0.0002048,2]
[349857297,1737462653311,-568.00611507,0.00020495,2]
[349857298,1737462653323,-83811.15108223,0.000205,2]
[349857299,1737462653332,-5000.0,0.00020508,2]
[349857300,1737462653341,-712.96392688,0.00020521,2]
[349857301,1737462653350,-5000.0,0.00020545,2]
[349857302,1737462653359,-161.98,0.00020546,2]
[349857303,1737462653368,-500.0,0.00020547,2]
[349857304,1737462653377,-500.0,0.00020547,2]
[349857305,1737462653386,-689.66,0.00020547,2]
[349857306,1737462653395,-178.45466,0.00020547,2]
[349857307,1737462653404,-500.0,0.00020547,2]
[349857308,1737462653413,-306.279279,0.00020547,2]
[349857309,1737462653422,-500.0,0.00020547,2]
[349857310,1737462653431,-1043.19,0.00020547,2]
[349857311,1737462653440,-500.0,0.00020547,2]
[349857312,1737462653450,-500.0,0.00020547,2]
[349857313,1737462653459,-500.0,0.00020547,2]
[349857314,1737462653468,-599.46042281,0.00020547,2]
[349857315,1737462653478,-500.0,0.00020547,2]
[349857316,1737462653487,-500.0,0.00020547,2]
[349857317,1737462653496,-500.0,0.00020547,2]
[349857318,1737462653505,-500.0,0.00020547,2]
[349857319,1737462653514,-500.0,0.00020547,2]
[349857320,1737462653523,-500.0,0.00020547,2]
[349857321,1737462653531,-545.01735512,0.00020547,2]
[349857322,1737462653540,-184.41877021,0.00020547,2]
[349857323,1737462653550,-500.0,0.00020547,2]
[349857324,1737462653559,-500.0,0.00020547,2]
[349857325,1737462653568,-500.0,0.00020547,2]
[349857326,1737462653577,-500.0,0.00020547,2]
[349857327,1737462653586,-500.0,0.00020547,2]
[349857328,1737462653595,-402.21413519,0.00020547,2]
[349857329,1737462653604,-500.0,0.00020547,2]
[349857330,1737462653615,-500.0,0.00020547,2]
[349857331,1737462653624,-500.0,0.00020547,2]
[349857332,1737462653635,-643.19,0.00020547,2]
[349857333,1737462653645,-614.98,0.00020547,2]
[349857334,1737462653655,-500.0,0.00020547,2]
[349857335,1737462653664,-1619.26,0.00020547,2]
[349857336,1737462653673,-801.78,0.00020547,2]
[349857337,1737462653682,-655.22,0.00020547,2]
[349857338,1737462653691,-652.34,0.00020547,2]
[349857339,1737462653702,-650.71,0.00020547,2]
[349857340,1737462653711,-500.0,0.00020547,2]
[349857341,1737462653721,-1340.0,0.00020547,2]
[349857342,1737462653730,-500.0,0.00020547,2]
[349857343,1737462653739,-500.0,0.00020547,2]
[349857344,1737462653748,-1025.72,0.00020547,2]
[349857345,1737462653757,-756.43,0.00020547,2]
[349857346,1737462653766,-2343.32,0.00020547,2]
[349857347,1737462653776,-7000.14,0.00020547,2]
[349857348,1737462653786,-530.11,0.00020547,2]
[349857349,1737462653796,-694.4,0.00020547,2]
[349857350,1737462653805,-500.0,0.00020547,2]
[349857351,1737462653815,-500.0,0.00020547,2]
[349857352,1737462653827,-714.16,0.00020547,2]
[349857353,1737462653836,-500.0,0.00020547,2]
[349857354,1737462653846,-500.0,0.00020547,2]
[349857355,1737462653855,-704.42,0.00020547,2]
[349857356,1737462653865,-1217.27,0.00020547,2]
[349857357,1737462653875,-907.48,0.00020547,2]
[349857358,1737462653884,-633.95,0.00020547,2]
[349857359,1737462653894,-500.0,0.00020547,2]
[349857360,1737462653903,-1505.01,0.00020547,2]
[349857361,1737462653913,-1390.6,0.00020547,2]
[349857362,1737462653923,-160.104929,0.00020547,2]
[349857363,1737462653932,-500.0,0.00020547,2]
[349857364,1737462653942,-500.0,0.00020547,2]
[349857365,1737462653951,-500.0,0.00020547,2]
[349857366,1737462653961,-1520.62,0.00020547,2]
[349857367,1737462653970,-500.0,0.00020547,2]
[349857368,1737462653980,-1814.66,0.00020547,2]
[349857369,1737462653989,-1534.94,0.00020547,2]
[349857370,1737462653999,-1633.23,0.00020547,2]
[349857371,1737462654008,-500.0,0.00020547,2]
[349857372,1737462654018,-500.0,0.00020547,2]
[349857373,1737462654028,-536.97,0.00020547,2]
[349857374,1737462654037,-831.03,0.00020547,2]
[349857375,1737462654046,-1404.98,0.00020547,2]
[349857376,1737462654056,-2262.0,0.00020547,2]
[349857377,1737462654065,-500.0,0.00020547,2]
[349857378,1737462654081,-645.6,0.00020547,2]
[349857379,1737462654090,-1533.37,0.00020547,2]
[349857380,1737462654099,-500.0,0.00020547,2]
[349857381,1737462654109,-500.0,0.00020547,2]
[349857382,1737462654119,-500.0,0.00020547,2]
[349857383,1737462654128,-1440.15,0.00020547,2]
[349857384,1737462654138,-300.0,0.00020547,2]
[349857385,1737462654147,-725.59,0.00020547,2]
[349857386,1737462654157,-500.0,0.00020547,2]
[349857387,1737462654167,-650.01,0.00020547,2]
[349857388,1737462654177,-500.0,0.00020547,2]
[349857389,1737462654186,-500.0,0.00020547,2]
[349857390,1737462654196,-622.22261785,0.00020547,2]
[349857391,1737462654205,-500.0,0.00020547,2]
[349857392,1737462654215,-554.28,0.00020547,2]
[349857393,1737462654224,-500.0,0.00020547,2]
[349857394,1737462654233,-500.0,0.00020547,2]
[349857395,1737462654243,-857.5,0.00020547,2]
[349857396,1737462654257,-1717.9,0.00020547,2]
[349857397,1737462654267,-500.0,0.00020547,2]
[349857398,1737462654278,-1100.42,0.00020547,2]
[349857399,1737462654288,-500.0,0.00020547,2]
[349857400,1737462654299,-535.14,0.00020547,2]
[349857401,1737462654309,-549.22,0.00020547,2]
[349857402,1737462654319,-1243.7,0.00020547,2]
[349857403,1737462654330,-1944.53,0.00020547,2]
[349857404,1737462654340,-502.90648469,0.00020547,2]
[349857405,1737462654350,-1058.2,0.00020547,2]
[349857406,1737462654360,-505.75,0.00020547,2]
[349857407,1737462654369,-1010.73,0.00020547,2]
[349857408,1737462654379,-500.0,0.00020547,2]
[349857409,1737462654389,-500.0,0.00020547,2]
[349857410,1737462654399,-500.0,0.00020547,2]
[349857411,1737462654408,-889.96,0.00020547,2]
[349857412,1737462654418,-836.65,0.00020547,2]
[349857413,1737462654428,-500.0,0.00020547,2]
[349857414,1737462654438,-190.8150454,0.00020547,2]
[349857415,1737462654448,-754.67,0.00020547,2]
[349857416,1737462654458,-663.33,0.00020547,2]
[349857417,1737462654467,-500.0,0.00020547,2]
[349857418,1737462654477,-629.98,0.00020547,2]
[349857419,1737462654487,-2093.6,0.00020547,2]
[349857420,1737462654497,-500.0,0.00020547,2]
[349857421,1737462654508,-500.0,0.00020547,2]
[349857422,1737462654518,-500.0,0.00020547,2]
[349857423,1737462654528,-421.17279388,0.00020547,2]
[349857424,1737462654538,-1339.45,0.00020547,2]
[349857425,1737462654548,-1723.67,0.00020547,2]
[349857426,1737462654557,-500.0,0.00020547,2]
[349857427,1737462654567,-740.18,0.00020547,2]
[349857428,1737462654579,-869.64,0.00020547,2]
[349857429,1737462654589,-2486.71,0.00020547,2]
[349857430,1737462654600,-212.76695615,0.00020547,2]
[349857431,1737462654610,-726.91,0.00020547,2]
[349857432,1737462654625,-342.45995454,0.00020547,2]
[349857433,1737462654635,-333.19629098,0.00020547,2]
[349857434,1737462654645,-500.0,0.00020547,2]
[349857435,1737462654654,-614.47,0.00020547,2]
[349857436,1737462654665,-500.0,0.00020547,2]
[349857437,1737462654675,-500.0,0.00020547,2]
[349857438,1737462654684,-964.42,0.00020547,2]
[349857439,1737462654694,-2007.07,0.00020547,2]
[349857440,1737462654703,-177.87754488,0.00020547,2]
[349857441,1737462654713,-500.0,0.00020547,2]
[349857442,1737462654723,-637.76,0.00020547,2]
[349857443,1737462654733,-500.0,0.00020547,2]
[349857444,1737462654742,-500.0,0.00020547,2]
[349857445,1737462654752,-500.0,0.00020547,2]
[349857446,1737462654763,-500.0,0.00020547,2]
[349857447,1737462654774,-1790.18,0.00020547,2]
[349857448,1737462654784,-357.51,0.00020547,2]
[349857449,1737462654794,-1152.1,0.00020547,2]
[349857450,1737462654804,-500.0,0.00020547,2]
[349857451,1737462654814,-500.0,0.00020547,2]
[349857452,1737462654826,-660.0,0.00020547,2]
[349857453,1737462654836,-500.0,0.00020547,2]
[349857454,1737462654846,-891.08,0.00020547,2]
[349857455,1737462654855,-1540.94,0.00020547,2]
[349857456,1737462654865,-1805.75,0.00020547,2]
[349857457,1737462654875,-1138.48,0.00020547,2]
[349857458,1737462654884,-500.0,0.00020547,2]
[349857459,1737462654894,-478.02307022,0.00020547,2]
[349857460,1737462654903,-500.0,0.00020547,2]
[349857461,1737462654913,-513.63101253,0.00020547,2]
[349857462,1737462654922,-1397.74,0.00020547,2]
[349857463,1737462654932,-500.0,0.00020547,2]
[349857464,1737462654941,-1522.16,0.00020547,2]
[349857465,1737462654951,-500.0,0.00020547,2]
[349857466,1737462654961,-500.0,0.00020547,2]
[349857467,1737462654971,-500.0,0.00020547,2]
[349857468,1737462654981,-391.86005985,0.00020547,2]
[349857469,1737462654991,-350.0,0.00020568,2]
[349857470,1737462655000,-152.29,0.0002057,2]
[349857471,1737462655010,-238.0,0.0002057,2]
[349857472,1737462655020,-3484.07,0.00020589,7]
[349857473,1737462655030,-3484.07,0.00020589,7]
[349857474,1737462655041,-171.72442,0.00020596,2]
[349857475,1737462655051,-2500.0,0.00020636,2]
[349857476,1737462655061,-25000.0,0.00020648,2]
[349857477,1737462655071,-25000.0,0.00020692,2]
[349857478,1737462655082,-2110.78,0.00020695,2]
[349857479,1737462655092,-568.00611507,0.00020698,2]
[349857480,1737462655102,-942.54,0.00020706,2]
[349857481,1737462655111,-500.0,0.0002072,2]
[349857482,1737462655121,-500.0,0.0002072,2]
[349857483,1737462655131,-500.0,0.0002072,2]
[349857484,1737462655140,-5000.0,0.00020726,2]
[349857485,1737462655151,-2522.94,0.00020749,2]
[349857486,1737462655161,-2562.06,0.0002075,2]
[349857487,1737462655171,-4969.57,0.00020752,2]
[349857488,1737462655180,-2548.66,0.00020763,2]
[349857489,1737462655189,-636.0,0.000208,2]
[349857490,1737462655199,-567.0,0.000208,2]
[349857491,1737462655209,-150.0,0.000208,2]
[349857492,1737462655219,-1864.0,0.000208,2]
[349857493,1737462655229,-907.0,0.000208,2]
[349857494,1737462655239,-2948.0,0.000208,2]
[349857495,1737462655248,-1261.0,0.000208,2]
[349857496,1737462655258,-781.0,0.000208,2]
[349857497,1737462655268,-537.0,0.000208,2]
[349857498,1737462655277,-3984.0,0.000208,2]
[349857499,1737462655287,-1106.0,0.000208,2]
[349857500,1737462655297,-3902.0,0.000208,2]
[349857501,1737462655307,-2018.0,0.000208,2]
[349857502,1737462655317,-1269.0,0.000208,2]
[349857503,1737462655331,-152.519,0.000208,2]
[349857504,1737462655341,-424.24,0.00020809,2]
[349857505,1737462655352,-500.0,0.00020821,2]
[349857506,1737462655361,-500.0,0.00020821,2]
[349857507,1737462655371,-689.66,0.00020821,2]
[349857508,1737462655381,-178.45466,0.00020821,2]
[349857509,1737462655390,-500.0,0.00020821,2]
[349857510,1737462655400,-306.279279,0.00020821,2]
[349857511,1737462655410,-500.0,0.00020821,2]
[349857512,1737462655420,-1043.19,0.00020821,2]
[349857513,1737462655430,-500.0,0.00020821,2]
[349857514,1737462655440,-500.0,0.00020821,2]
[349857515,1737462655450,-500.0,0.00020821,2]
[349857516,1737462655460,-500.0,0.00020821,2]
[349857517,1737462655469,-500.0,0.00020821,2]
[349857518,1737462655479,-500.0,0.00020821,2]
[349857519,1737462655488,-500.0,0.00020821,2]
[349857520,1737462655497,-500.0,0.00020821,2]
[349857521,1737462655507,-500.0,0.00020821,2]
[349857522,1737462655516,-500.0,0.00020821,2]
[349857523,1737462655526,-500.0,0.00020821,2]
[349857524,1737462655535,-500.0,0.00020821,2]
[349857525,1737462655545,-500.0,0.00020821,2]
[349857526,1737462655554,-500.0,0.00020821,2]
[349857527,1737462655564,-502.0,0.00020821,2]
[349857528,1737462655576,-500.0,0.00020821,2]
[349857529,1737462655585,-500.0,0.00020821,2]
[349857530,1737462655595,-643.19,0.00020821,2]
[349857531,1737462655604,-614.98,0.00020821,2]
[349857532,1737462655615,-500.0,0.00020821,2]
[349857533,1737462655624,-1619.26,0.00020821,2]
[349857534,1737462655638,-801.78,0.00020821,2]
[349857535,1737462655647,-655.22,0.00020821,2]
[349857536,1737462655657,-169.142506,0.00020821,2]
[349857537,1737462655667,-652.34,0.00020821,2]
[349857538,1737462655677,-650.71,0.00020821,2]
[349857539,1737462655687,-176.86150707,0.00020821,2]
[349857540,1737462655696,-1340.0,0.00020821,2]
[349857541,1737462655707,-500.0,0.00020821,2]
[349857542,1737462655716,-500.0,0.00020821,2]
[349857543,1737462655726,-1025.72,0.00020821,2]
[349857544,1737462655735,-756.43,0.00020821,2]
[349857545,1737462655745,-2343.32,0.00020821,2]
[349857546,1737462655755,-7000.14,0.00020821,2]
[349857547,1737462655765,-530.11,0.00020821,2]
[349857548,1737462655775,-694.4,0.00020821,2]
[349857549,1737462655785,-500.0,0.00020821,2]
[349857550,1737462655794,-500.0,0.00020821,2]
[349857551,1737462655804,-714.16,0.00020821,2]
[349857552,1737462655814,-500.0,0.00020821,2]
[349857553,1737462655825,-500.0,0.00020821,2]
[349857554,1737462655835,-704.42,0.00020821,2]
[349857555,1737462655845,-1217.27,0.00020821,2]
[349857556,1737462655855,-907.48,0.00020821,2]
[349857557,1737462655865,-633.95,0.00020821,2]
[349857558,1737462655874,-500.0,0.00020821,2]
[349857559,1737462655884,-1505.01,0.00020821,2]
[349857560,1737462655895,-1390.6,0.00020821,2]
[349857561,1737462655904,-500.0,0.00020821,2]
[349857562,1737462656067,-500.0,0.00020821,2]
[349857563,1737462656080,-500.0,0.00020821,2]
[349857564,1737462656090,-1520.62,0.00020821,2]
[349857565,1737462656099,-500.0,0.00020821,2]
[349857566,1737462656109,-1814.66,0.00020821,2]
[349857567,1737462656118,-1534.94,0.00020821,2]
[349857568,1737462656128,-1633.23,0.00020821,2]
[349857569,1737462656138,-580.16987087,0.00020821,2]
[349857570,1737462656147,-500.0,0.00020821,2]
[349857571,1737462656157,-536.97,0.00020821,2]
[349857572,1737462656167,-831.03,0.00020821,2]
[349857573,1737462656176,-1404.98,0.00020821,2]
[349857574,1737462656185,-2262.0,0.00020821,2]
[349857575,1737462656194,-507.3,0.00020821,2]
[349857576,1737462656203,-645.6,0.00020821,2]
[349857577,1737462656213,-1533.37,0.00020821,2]
[349857578,1737462656222,-500.0,0.00020821,2]
[349857579,1737462656232,-500.0,0.00020821,2]
[349857580,1737462656242,-500.0,0.00020821,2]
[349857581,1737462656251,-1440.15,0.00020821,2]
[349857582,1737462656261,-300.0,0.00020821,2]
[349857583,1737462656271,-725.59,0.00020821,2]
[349857584,1737462656280,-500.0,0.00020821,2]
[349857585,1737462656289,-650.01,0.00020821,2]
[349857586,1737462656299,-500.0,0.00020821,2]
[349857587,1737462656308,-500.0,0.00020821,2]
[349857588,1737462656317,-500.0,0.00020821,2]
[349857589,1737462656330,-554.28,0.00020821,2]
[349857590,1737462656339,-500.0,0.00020821,2]
[349857591,1737462656349,-500.0,0.00020821,2]
[349857592,1737462656359,-857.5,0.00020821,2]
[349857593,1737462656368,-1717.9,0.00020821,2]
[349857594,1737462656378,-1100.42,0.00020821,2]
[349857595,1737462656388,-500.0,0.00020821,2]
[349857596,1737462656397,-535.14,0.00020821,2]
[349857597,1737462656406,-549.22,0.00020821,2]
[349857598,1737462656416,-1944.53,0.00020821,2]
[349857599,1737462656426,-1243.7,0.00020821,2]
[349857600,1737462656436,-1058.2,0.00020821,2]
[349857601,1737462656446,-505.75,0.00020821,2]
[349857602,1737462656455,-1010.73,0.00020821,2]
[349857603,1737462656465,-380.45734058,0.00020821,2]
[349857604,1737462656474,-889.96,0.00020821,2]
[349857605,1737462656484,-836.65,0.00020821,2]
[349857606,1737462656493,-754.67,0.00020821,2]
[349857607,1737462656503,-663.33,0.00020821,2]
[349857608,1737462656512,-629.98,0.00020821,2]
[349857609,1737462656521,-2093.6,0.00020821,2]
[349857610,1737462656530,-244.09651066,0.00020821,2]
[349857611,1737462656540,-500.0,0.00020821,2]
[349857612,1737462656550,-1339.45,0.00020821,2]
[349857613,1737462656559,-1723.67,0.00020821,2]
[349857614,1737462656569,-500.0,0.00020821,2]
[349857615,1737462656579,-740.18,0.00020821,2]
[349857616,1737462656588,-869.64,0.00020821,2]
[349857617,1737462656597,-2486.71,0.00020821,2]
[349857618,1737462656607,-726.91,0.00020821,2]
[349857619,1737462656619,-500.0,0.00020821,2]
[349857620,1737462656629,-614.47,0.00020821,2]
[349857621,1737462656639,-500.0,0.00020821,2]
[349857622,1737462656648,-964.42,0.00020821,2]
[349857623,1737462656658,-2007.07,0.00020821,2]
[349857624,1737462656669,-500.0,0.00020821,2]
[349857625,1737462656679,-637.76,0.00020821,2]
[349857626,1737462656689,-500.0,0.00020821,2]
[349857627,1737462656699,-500.0,0.00020821,2]
[349857628,1737462656709,-500.0,0.00020821,2]
[349857629,1737462656719,-1790.18,0.00020821,2]
[349857630,1737462656729,-1152.1,0.00020821,2]
[349857631,1737462656738,-500.0,0.00020821,2]
[349857632,1737462656747,-500.0,0.00020821,2]
[349857633,1737462656757,-660.0,0.00020821,2]
[349857634,1737462656769,-500.0,0.00020821,2]
[349857635,1737462656778,-891.08,0.00020821,2]
[349857636,1737462656789,-1540.94,0.00020821,2]
[349857637,1737462656799,-151.0,0.00020821,2]
[349857638,1737462656809,-1805.75,0.00020821,2]
[349857639,1737462656819,-1138.48,0.00020821,2]
[349857640,1737462656831,-500.0,0.00020821,2]
[349857641,1737462656840,-500.0,0.00020821,2]
[349857642,1737462656850,-1397.74,0.00020821,2]
[349857643,1737462656859,-151.0,0.00020821,2]
[349857644,1737462656869,-500.0,0.00020821,2]
[349857645,1737462656878,-1522.16,0.00020821,2]
[349857646,1737462656888,-624.30679396,0.00020821,2]
[349857647,1737462656897,-548.65482246,0.00020821,2]
[349857648,1737462656907,-152.598196,0.00020821,2]
[349857649,1737462656916,-500.0,0.00020821,2]
[349857650,1737462656927,-151.0,0.00020821,2]
[349857651,1737462656936,-151.0,0.00020821,2]
[349857652,1737462656947,-2522.94,0.00020846,2]
[349857653,1737462656955,-151.0,0.00020863,2]
[349857654,1737462656965,-161.384238,0.00020863,2]
[349857655,1737462656974,-151.0,0.00020863,2]
[349857656,1737462656984,-151.0,0.00020863,2]
[349857657,1737462656993,-151.0,0.00020863,2]
[349857658,1737462657003,-151.0,0.00020863,2]
[349857659,1737462657012,-989.699298,0.00020863,2]
[349857660,1737462657022,-156.535491,0.00020863,2]
[349857661,1737462657031,-989.699298,0.00020863,2]
[349857662,1737462657040,-3484.07,0.00020863,7]
[349857663,1737462657049,-3484.07,0.00020863,7]
[349857664,1737462657059,-402.56291362,0.00020876,2]
[349857665,1737462657068,-201.07,0.00020893,2]
[349857666,1737462657079,-462.35,0.00020895,2]
[349857667,1737462657088,-200.0,0.000209,7]
[349857668,1737462657097,-161.274,0.000209,2]
[349857669,1737462657106,-568.00611507,0.000209,2]
[349857670,1737462657115,-151.11878276,0.000209,3]
[349857671,1737462657125,-227.09556682,0.000209,2]
[349857672,1737462657134,-238.0,0.0002092,2]
[349857673,1737462657144,-20382.85,0.00020951,2]
[349857674,1737462657154,-29999.99,0.00020951,2]
[349857675,1737462657163,-7170.67,0.00020951,2]
[349857676,1737462657173,-5000.0,0.00020963,2]
[349857677,1737462657182,-25000.0,0.00020963,2]
[349857678,1737462657192,-25000.0,0.0002098,2]
[349857679,1737462657201,-151.0,0.0002098,2]
[349857680,1737462657210,-151.0,0.0002098,2]
[349857681,1737462657220,-151.0,0.0002098,2]
[349857682,1737462657229,-207.038256,0.0002098,2]
[349857683,1737462657239,-153.671291,0.0002098,2]
[349857684,1737462657248,-195.484496,0.0002098,2]
[349857685,1737462657257,-207.038256,0.0002098,2]
[349857686,1737462657267,-195.484496,0.0002098,2]
[349857687,1737462657276,-151.0,0.0002098,2]
[349857688,1737462657286,-288.822405,0.0002098,2]
[349857689,1737462657295,-288.822405,0.0002098,2]
[349857690,1737462657305,-151.0,0.0002098,2]
[349857691,1737462657314,-150.0,0.00020986,4]
[349857692,1737462657323,-150.0,0.00020986,4]
[349857693,1737462657332,-150.0,0.00020986,4]
[349857694,1737462657342,-25000.0,0.00020992,2]
[349857695,1737462657351,-500.0,0.00020994,2]
[349857696,1737462657360,-500.0,0.00020994,2]
[349857697,1737462657370,-500.0,0.00020994,2]
[349857698,1737462657379,-666.0,0.00020999,2]
[349857699,1737462657388,-500.0,0.00020999,2]
[349857700,1737462657397,-999.0,0.00020999,2]
[349857701,1737462657407,-750.92753303,0.00020999,2]
[349857702,1737462657416,-1655320.16631714,0.00021,2]
[349857703,1737462657426,-846.75653391,0.00021,2]
[349857704,1737462657435,-500.0,0.00021,7]
[349857705,1737462657444,-4221355.42671606,0.00021,15]
[349857706,1737462657640,-692.31854969,0.00021,15]
[349857707,1737462657661,-495.25216913,0.0002,2]
[349857708,1737462657933,-500.0,0.00019178,2]
[349857709,1737462657943,-4.74783087,0.0002,2]
[349857710,1737462657952,-500.0,0.00020273,2]
[349857711,1737462657961,-500.0,0.00020547,2]
[349857712,1737462657971,-637.0,0.000208,2]
[349857713,1737462657980,-151.0,0.00020821,2]
[349857714,1737462657989,-3959.73216913,0.00021,15]
[349857715,1737462658000,-450.59101732,0.00021,15]
[349857716,1737462658020,-317197.00741142,0.00021,15]
[349857717,1737462658048,-151.0,0.00020863,2]
[349857718,1737462658057,-52199.0,0.00021,15]
[349857719,1737462658303,-500.0,0.00019178,2]
[349857720,1737462658313,-83.235008,0.00019178,2]
[349857721,1737462658326,-242.3094287,0.00019178,2]
[349857722,1737462658335,-500.0,0.00019178,2]
[349857723,1737462658344,-500.0,0.00019178,2]
[349857724,1737462658353,-500.0,0.00019452,2]
[349857725,1737462658363,-300.16760133,0.00019452,2]
[349857726,1737462658399,-500.0,0.00019178,2]
[349857727,1737462658408,-500.0,0.00019178,2]
[349857728,1737462658418,-199.83239867,0.00019452,2]
[349857729,1737462658427,-500.0,0.00019452,2]
[349857730,1737462658436,-500.0,0.00019726,2]
[349857731,1737462658445,-500.0,0.00019726,2]